bitfinex/quotes_BTCUSD_20240727
["timestamp","ask_amount","ask_price","bid_price","bid_amount"]
[1722097190269,2.25428619,68952.0,68951.0,2.90415059]
[1722097191456,2.20637143,68952.0,68951.0,2.91618296]
[1722097191670,2.15451343,68952.0,68951.0,2.91818296]
[1722097191894,2.12037777,68952.0,68951.0,3.23990216]
[1722097192094,2.12037777,68952.0,68951.0,3.17516888]
[1722097192635,2.11537777,68952.0,68951.0,3.17516888]
[1722097192837,2.10188777,68952.0,68951.0,3.11492491]
[1722097193055,2.10188777,68952.0,68951.0,3.44238031]
[1722097193310,2.08250771,68952.0,68951.0,3.17516516]
[1722097193514,1.70228998,68952.0,68951.0,3.26169437]
[1722097193645,1.70228998,68952.0,68951.0,3.17516516]
[1722097193850,1.63345856,68952.0,68951.0,3.17516516]
[1722097194234,0.03027025,68952.0,68951.0,3.67142616]
[1722097194435,0.0629,68976.0,68975.0,1.01486]
[1722097194581,0.0629,68976.0,68975.0,1.18743054]
[1722097194781,0.0789,68980.0,68978.0,1.016814]
[1722097194984,0.0629,68981.0,68978.0,1.60050411]
[1722097195722,0.0629,68981.0,68978.0,1.62959411]
[1722097195910,0.0629,68981.0,68978.0,1.62759411]
[1722097196065,0.0629,68981.0,68978.0,1.47731841]
[1722097196264,0.0809,68979.0,68978.0,1.18737141]
[1722097196671,0.0809,68979.0,68978.0,1.066907]
[1722097197293,0.1438,68979.0,68978.0,0.77696]
[1722097197538,0.1438,68979.0,68978.0,1.094907]
[1722097197738,0.1438,68979.0,68978.0,0.34704]
[1722097197895,0.1438,68979.0,68978.0,0.33304]
[1722097198091,0.288771,68979.0,68978.0,0.30395]
[1722097198295,0.1438,68979.0,68978.0,0.31795]
[1722097198619,0.21892979,68979.0,68978.0,0.31795]
[1722097198978,0.24168346,68979.0,68978.0,0.31795]
[1722097199174,0.38665446,68979.0,68978.0,0.31795]
[1722097199664,0.24168346,68979.0,68978.0,0.31795]
[1722097199799,0.96654046,68979.0,68978.0,0.31795]
[1722097200148,0.67659746,68979.0,68978.0,0.31795]
[1722097200303,0.66271201,68979.0,68978.0,0.31795]
[1722097200508,0.95265501,68979.0,68978.0,0.18475]
[1722097200720,1.27969801,68979.0,68978.0,0.11355]
[1722097200934,1.27969801,68979.0,68978.0,0.09955]
[1722097201150,0.0789,68961.0,68957.0,0.4718]
[1722097201308,0.0789,68960.0,68957.0,0.02909]
[1722097202382,0.0789,68960.0,68958.0,0.02909]
[1722097203590,0.02275736,68960.0,68958.0,0.02909]
[1722097203797,0.0789,68959.0,68958.0,0.02909]
[1722097204014,0.0789,68959.0,68958.0,0.04209]
[1722097204818,0.0789,68959.0,68958.0,0.04309]
[1722097205182,0.0799,68959.0,68958.0,0.05609]
[1722097205383,0.0799,68959.0,68958.0,0.04209]
[1722097205666,0.0799,68959.0,68958.0,0.05609]
[1722097207214,0.10265741,68959.0,68958.0,0.05609]
[1722097207826,0.02375741,68959.0,68958.0,0.201105]
[1722097208007,0.02375741,68959.0,68958.0,0.781167]
[1722097208207,0.02375741,68959.0,68958.0,1.158498]
[1722097208412,0.001,68959.0,68958.0,1.158498]
[1722097208817,0.001,68959.0,68958.0,1.156498]
[1722097209665,0.001,68959.0,68958.0,1.158498]
[1722097209823,0.001,68959.0,68958.0,1.156498]
[1722097210037,0.001,68959.0,68958.0,1.158498]
[1722097210240,0.001,68959.0,68958.0,1.156498]
[1722097210527,0.001,68959.0,68958.0,1.59878857]
[1722097211001,0.001,68959.0,68958.0,1.80138563]
[1722097211189,0.001,68959.0,68958.0,1.68088857]
[1722097211401,0.001,68959.0,68958.0,1.80138332]
[1722097212984,0.001,68959.0,68958.0,2.10100132]
[1722097214480,0.001,68959.0,68958.0,2.10099757]
[1722097214683,0.001,68959.0,68958.0,2.10099769]
[1722097215904,0.02375509,68959.0,68958.0,2.49102869]
[1722097216034,0.001,68959.0,68958.0,2.49102869]
[1722097217071,0.00284,68979.0,68978.0,0.724867]
[1722097217276,0.00284,68979.0,68978.0,0.73437097]
[1722097217934,0.02559307,68979.0,68978.0,0.73437097]
[1722097218347,0.02559307,68979.0,68978.0,0.44442397]
[1722097218548,0.02559307,68979.0,68978.0,0.45242397]
[1722097218750,0.02559307,68979.0,68978.0,0.01750397]
[1722097219034,0.10439307,68979.0,68978.0,0.01750397]
[1722097219553,0.10439307,68979.0,68978.0,0.02250397]
[1722097220365,0.0831942,68979.0,68978.0,0.02250397]
[1722097221237,0.0831942,68979.0,68978.0,0.013]
[1722097221766,0.08164,68979.0,68978.0,0.013]
[1722097226144,0.08164,68979.0,68978.0,0.44792]
[1722097226384,0.00284,68979.0,68978.0,0.737867]
[1722097227932,0.00284,68979.0,68978.0,1.027814]
[1722097228072,0.02559257,68979.0,68978.0,1.027814]
[1722097228277,0.00284,68979.0,68978.0,1.109914]
[1722097228481,0.00284,68979.0,68978.0,1.34706884]
[1722097228888,0.00284,68979.0,68978.0,1.226604]
[1722097229067,0.00284,68979.0,68978.0,1.218604]
[1722097229706,0.00284,68979.0,68978.0,1.131504]
[1722097229892,0.00284,68979.0,68978.0,1.145504]
[1722097230114,0.00284,68979.0,68978.0,1.131504]
[1722097230243,0.00284,68979.0,68978.0,0.855557]
[1722097230443,0.00284,68979.0,68978.0,0.832557]
[1722097230721,0.00284,68979.0,68978.0,0.846557]
[1722097231120,0.00284,68979.0,68978.0,0.832557]
[1722097231324,0.02559179,68979.0,68978.0,0.767957]
[1722097231498,0.02559179,68979.0,68978.0,0.781957]
[1722097231699,0.02559179,68979.0,68978.0,0.50743803]
[1722097231902,0.10239179,68979.0,68978.0,0.21749103]
[1722097232098,0.10239179,68979.0,68978.0,0.50743803]
[1722097232534,0.07964,68979.0,68978.0,0.21749103]
[1722097232913,0.07964,68979.0,68978.0,0.07251803]
[1722097233294,0.07964,68979.0,68978.0,0.04342803]
[1722097233480,0.07964,68979.0,68978.0,0.028]
[1722097233864,0.07964,68979.0,68978.0,0.04332243]
[1722097234270,0.07964,68979.0,68978.0,0.02932243]
[1722097234598,0.07964,68979.0,68978.0,0.04332243]
[1722097234599,0.06964,68979.0,68978.0,0.04332243]
[1722097235176,0.06964,68979.0,68978.0,0.02932243]
[1722097235320,0.06964,68979.0,68978.0,0.04332243]
[1722097235689,0.09239247,68979.0,68978.0,0.04332243]
[1722097236099,0.06964,68979.0,68978.0,0.07241243]
[1722097236300,0.0097242,68982.0,68978.0,0.13603643]
[1722097236516,0.0097242,68982.0,68978.0,0.28100943]
[1722097236721,0.00084,68979.0,68978.0,0.07333643]
[1722097237372,0.00084,68979.0,68978.0,0.04533643]
[1722097237572,0.00084,68979.0,68978.0,0.05933643]
[1722097237781,0.0023942,68979.0,68978.0,0.07333643]
[1722097238291,0.0023942,68979.0,68978.0,0.05933643]
[1722097238615,0.0023942,68979.0,68978.0,0.07333643]
[1722097238973,0.0023942,68979.0,68978.0,0.05933643]
[1722097239401,0.0023942,68979.0,68978.0,0.07333643]
[1722097241323,0.0023942,68979.0,68978.0,0.21830943]
[1722097241531,0.0023942,68979.0,68978.0,0.07333643]
[1722097241735,0.0023942,68979.0,68978.0,0.04424643]
[1722097241736,0.15432399,68979.0,68978.0,0.04424643]
[1722097241940,0.87762679,68979.0,68978.0,0.04424643]
[1722097242141,1.16756979,68979.0,68978.0,0.028924]
[1722097242719,0.0768,68962.0,68958.0,0.29003]
[1722097242914,0.2062,68959.0,68958.0,0.29003]
[1722097243823,0.0768,68962.0,68958.0,0.29003]
[1722097244025,0.0768,68962.0,68959.0,0.02909]
[1722097244900,0.0768,68962.0,68958.0,0.30403]
[1722097244901,0.14501,68961.0,68958.0,0.30403]
[1722097245098,0.145011,68960.0,68958.0,0.30403]
[1722097245277,0.145011,68960.0,68959.0,0.013]
[1722097245680,0.145011,68960.0,68958.0,0.30403]
[1722097246101,0.146009,68961.0,68958.0,0.31703]
[1722097246272,0.146009,68961.0,68959.0,0.01086198]
[1722097246502,0.001,68961.0,68959.0,0.01086198]
[1722097247411,0.0768,68962.0,68959.0,0.01086198]
[1722097247657,0.001,68960.0,68959.0,0.01086198]
[1722097248104,0.02276015,68960.0,68959.0,0.01086198]
[1722097248305,0.00873759,68964.0,68959.0,0.01086198]
[1722097248531,0.001,68961.0,68959.0,0.15587398]
[1722097248736,0.001,68961.0,68960.0,0.145011]
[1722097248935,0.2062,68965.0,68960.0,0.145011]
[1722097249139,0.21501483,68965.0,68960.0,0.15587617]
[1722097249336,0.21501483,68965.0,68960.0,0.01086517]
[1722097249539,0.21501483,68965.0,68960.0,0.15587617]
[1722097249898,0.001,68961.0,68960.0,0.145011]
[1722097250031,0.07512979,68964.0,68958.0,0.29003]
[1722097250236,0.2882,68959.0,68958.0,0.29003]
[1722097251655,0.31096044,68959.0,68958.0,0.29003]
[1722097251978,0.02276044,68959.0,68958.0,0.789576]
[1722097252178,0.02276044,68959.0,68958.0,0.801576]
[1722097252179,0.001,68959.0,68958.0,0.801576]
[1722097252705,0.002,68959.0,68958.0,0.812576]
[1722097253056,0.001,68959.0,68958.0,0.801576]
[1722097253263,0.001,68959.0,68958.0,0.812576]
[1722097253264,0.002,68959.0,68958.0,0.812576]
[1722097253592,0.002,68959.0,68958.0,0.31303]
[1722097254390,0.084,68959.0,68958.0,0.31303]
[1722097254594,0.083,68959.0,68958.0,0.30103]
[1722097254790,0.2892,68959.0,68958.0,0.31403]
[1722097255173,0.002,68959.0,68958.0,0.31403]
[1722097255757,0.002,68959.0,68958.0,0.32324274]
[1722097256788,0.0247602,68959.0,68958.0,0.32324274]
[1722097257311,0.2309602,68959.0,68958.0,0.32324274]
[1722097258925,0.6660002,68959.0,68958.0,0.32324274]
[1722097259162,0.9560272,68959.0,68958.0,0.32324274]
[1722097259370,1.3280542,68959.0,68958.0,0.32324274]
[1722097259708,1.305294,68959.0,68958.0,0.32324274]
[1722097259880,1.305294,68959.0,68958.0,0.31403]
[1722097260290,1.305294,68959.0,68958.0,0.3217877]
[1722097260690,1.303294,68959.0,68958.0,0.2977877]
[1722097260891,1.013267,68959.0,68958.0,0.2977877]
[1722097261094,1.015267,68959.0,68958.0,0.3207877]
[1722097261303,1.305294,68959.0,68958.0,0.3207877]
[1722097261704,1.405294,68959.0,68958.0,0.3207877]
[1722097262123,1.097196,68952.0,68951.0,0.000924]
[1722097262329,1.303396,68952.0,68951.0,0.000924]
[1722097262671,1.32616278,68952.0,68951.0,0.000924]
[1722097263742,1.32616278,68952.0,68951.0,0.002924]
[1722097265537,1.45068543,68952.0,68951.0,0.002924]
[1722097266631,1.74074143,68952.0,68951.0,0.002924]
[1722097266862,1.84074143,68952.0,68951.0,0.000924]
[1722097267107,1.84274143,68952.0,68951.0,0.000924]
[1722097267344,1.85171255,68952.0,68951.0,0.000924]
[1722097267781,1.84971255,68952.0,68951.0,0.000924]
[1722097268291,1.7251899,68952.0,68951.0,0.000924]
[1722097268531,1.4351339,68952.0,68951.0,0.000924]
[1722097268760,1.4371339,68952.0,68951.0,0.000924]
[1722097269205,1.4431339,68952.0,68951.0,0.000924]
[1722097271181,0.8630219,68952.0,68951.0,0.000924]
[1722097271408,0.84025512,68952.0,68951.0,0.000924]
[1722097271583,1.13031112,68952.0,68951.0,0.000924]
[1722097272861,1.56240263,68952.0,68951.0,0.000924]
[1722097273068,1.27234663,68952.0,68951.0,0.000924]
[1722097273921,1.56240263,68952.0,68951.0,0.000924]
[1722097274512,1.56240263,68952.0,68937.0,0.000924]
[1722097274513,0.145057,68938.0,68937.0,0.000924]
[1722097274690,0.351257,68938.0,68937.0,0.000924]
[1722097274895,0.2062,68938.0,68937.0,0.000924]
[1722097275495,0.641372,68938.0,68937.0,0.000924]
[1722097275710,0.931487,68938.0,68937.0,0.000924]
[1722097275960,0.95425588,68938.0,68937.0,0.000924]
[1722097276359,0.931487,68938.0,68937.0,0.000924]
[1722097276537,0.932487,68938.0,68937.0,0.000924]
[1722097276717,0.933487,68938.0,68937.0,0.000924]
[1722097276918,0.932487,68938.0,68937.0,0.000924]
[1722097277162,0.933487,68938.0,68937.0,0.000924]
[1722097277365,0.932487,68938.0,68937.0,0.000924]
[1722097277566,1.222602,68938.0,68937.0,0.000924]
[1722097277918,0.435255,68925.0,68924.0,0.0631]
[1722097278322,0.435255,68925.0,68924.0,0.06986022]
[1722097279173,0.725425,68925.0,68924.0,0.00676022]
[1722097279392,0.725425,68925.0,68920.0,0.000924]
[1722097279393,0.435274,68922.0,68920.0,0.000924]
[1722097279591,1.01564,68922.0,68920.0,0.000924]
[1722097280483,1.22184,68922.0,68920.0,0.000924]
[1722097281634,1.22284,68922.0,68920.0,0.000924]
[1722097282000,1.22184,68922.0,68920.0,0.000924]
[1722097282201,1.22284,68922.0,68920.0,0.000924]
[1722097282543,0.642474,68922.0,68920.0,0.000924]
[1722097283050,0.933657,68922.0,68920.0,0.000924]
[1722097283182,0.932657,68922.0,68920.0,0.000924]
[1722097284412,0.932657,68922.0,68921.0,0.0642372]
[1722097284413,0.001,68922.0,68921.0,0.0642372]
[1722097286108,0.001,68922.0,68921.0,0.2093302]
[1722097286273,0.001,68922.0,68921.0,0.0642372]
[1722097286472,0.001,68922.0,68921.0,0.2093302]
[1722097286612,0.001,68922.0,68921.0,0.0642372]
[1722097287024,0.02277261,68925.0,68922.0,0.14509]
[1722097287224,0.02277261,68925.0,68922.0,0.0631]
[1722097288262,0.02377261,68925.0,68922.0,0.0631]
[1722097289139,0.04753502,68925.0,68922.0,0.0631]
[1722097289734,0.04753502,68925.0,68923.0,0.145088]
[1722097289963,0.04753502,68925.0,68922.0,0.0631]
[1722097290419,0.02476241,68925.0,68922.0,0.0631]
[1722097290623,0.02476241,68925.0,68922.0,0.208191]
[1722097290826,0.02376241,68925.0,68923.0,0.145088]
[1722097290976,0.02476241,68925.0,68923.0,0.148088]
[1722097291176,0.02476241,68925.0,68923.0,0.003]
[1722097291602,0.02376241,68925.0,68922.0,0.208191]
[1722097291823,0.02476241,68925.0,68922.0,0.0661]
[1722097292042,0.02476241,68925.0,68922.0,0.211191]
[1722097292246,0.02476241,68925.0,68922.0,0.0661]
[1722097292427,0.02276241,68925.0,68922.0,0.208191]
[1722097292631,0.02376241,68925.0,68922.0,0.208191]
[1722097293033,0.02276241,68925.0,68922.0,0.208191]
[1722097293236,0.02376241,68925.0,68922.0,0.0631]
[1722097294012,0.04753533,68925.0,68923.0,0.003]
[1722097294386,0.04653533,68925.0,68922.0,0.0631]
[1722097294624,0.04753533,68925.0,68922.0,0.0661]
[1722097294751,0.02476241,68925.0,68922.0,0.0661]
[1722097295175,0.02376241,68925.0,68922.0,0.0631]
[1722097295559,0.02476241,68925.0,68923.0,0.003]
[1722097296164,0.02376241,68925.0,68923.0,0.003]
[1722097296577,0.02476241,68925.0,68923.0,0.003]
[1722097297526,0.02376241,68925.0,68922.0,0.0631]
[1722097297754,0.02376241,68925.0,68923.0,0.145088]
[1722097297991,0.02376241,68925.0,68924.0,0.498361]
[1722097298185,0.02376241,68925.0,68924.0,0.87103681]
[1722097298391,0.001,68925.0,68924.0,1.30187977]
[1722097298600,0.002,68925.0,68924.0,1.30187977]
[1722097299376,0.001,68925.0,68924.0,1.30187977]
[1722097299762,0.002,68925.0,68924.0,1.31187977]
[1722097299968,0.001,68925.0,68924.0,1.31187977]
[1722097300408,0.00092399,68942.0,68925.0,0.1427]
[1722097300628,0.02275806,68943.0,68925.0,0.1427]
[1722097300629,0.02275806,68943.0,68942.0,0.577847]
[1722097300835,0.02275806,68943.0,68942.0,1.158043]
[1722097301011,0.145005,68963.0,68952.0,0.145026]
[1722097301211,0.372706,68965.0,68953.0,0.145]
[1722097301212,0.145007,68962.0,68953.0,0.145]
[1722097301416,0.372706,68965.0,68953.0,0.145]
[1722097301417,0.02275364,68954.0,68953.0,0.290026]
[1722097302239,0.02275364,68954.0,68953.0,0.580078]
[1722097303002,0.02275364,68954.0,68953.0,0.290026]
[1722097303402,0.02275364,68954.0,68953.0,0.318026]
[1722097303403,0.02375364,68954.0,68953.0,0.318026]
[1722097303606,0.02375364,68954.0,68953.0,0.173]
[1722097304329,0.02375364,68954.0,68953.0,0.318026]
[1722097304529,0.02375364,68954.0,68953.0,0.608078]
[1722097304755,0.02375364,68954.0,68953.0,0.89813]
[1722097306067,0.02375364,68954.0,68953.0,1.188182]
[1722097306068,0.04651551,68954.0,68953.0,1.188182]
[1722097306276,0.02376187,68954.0,68953.0,1.188182]
[1722097307089,0.001,68954.0,68953.0,1.188182]
[1722097307401,0.001,68954.0,68953.0,0.89813]
[1722097308712,0.001,68954.0,68953.0,0.318026]
[1722097308913,0.001,68954.0,68953.0,0.608078]
[1722097309128,0.001,68954.0,68953.0,0.89813]
[1722097310889,0.001,68954.0,68953.0,1.188182]
[1722097313614,0.02376036,68954.0,68953.0,1.188182]
[1722097313975,0.001,68954.0,68953.0,1.188182]
[1722097315402,0.001,68954.0,68953.0,0.89813]
[1722097317460,0.001,68954.0,68953.0,0.238426]
[1722097317665,0.001,68954.0,68953.0,0.528478]
[1722097319048,0.001,68954.0,68953.0,0.81853]
[1722097320320,0.001,68954.0,68953.0,0.238426]
[1722097320544,0.001,68954.0,68953.0,0.0934]
[1722097320748,0.001,68954.0,68953.0,0.028]
[1722097321564,0.001,68954.0,68953.0,0.173026]
[1722097321776,0.001,68954.0,68953.0,0.255926]
[1722097321925,0.02376181,68954.0,68953.0,0.255926]
[1722097322493,0.001,68954.0,68953.0,0.545978]
[1722097322868,0.001,68954.0,68953.0,0.255926]
[1722097323973,0.001,68954.0,68953.0,0.028]
[1722097325139,0.10761629,68954.0,68953.0,0.028]
[1722097325578,0.02531629,68954.0,68953.0,0.028]
[1722097325739,0.02376209,68954.0,68953.0,0.028]
[1722097326136,0.001,68954.0,68953.0,0.028]
[1722097329323,0.02376266,68954.0,68953.0,0.028]
[1722097329735,0.001,68954.0,68953.0,0.028]
[1722097331555,0.0025542,68954.0,68953.0,0.028]
[1722097332185,0.001,68954.0,68953.0,0.028]
[1722097332390,0.81042,68954.0,68953.0,0.028]
[1722097332543,1.100468,68954.0,68953.0,0.028]
[1722097332744,1.62972962,68954.0,68953.0,0.028]
[1722097332949,1.51328141,68954.0,68953.0,0.028]
[1722097333407,1.490516,68954.0,68953.0,0.028]
[1722097333642,1.490516,68954.0,68953.0,0.014]
[1722097333846,1.200468,68954.0,68953.0,0.014]
[1722097333994,1.200468,68954.0,68942.0,0.4718]
[1722097333995,0.18914,68954.0,68942.0,0.4718]
[1722097334197,0.145047,68943.0,68942.0,0.4718]
[1722097334379,0.083,68944.0,68937.0,0.02909]
[1722097334581,0.2916502,68943.0,68937.0,0.02909]
[1722097334935,0.0015542,68941.0,68937.0,0.02909]
[1722097335278,0.0015542,68941.0,68934.0,0.02909]
[1722097335762,0.0015542,68941.0,68937.0,0.014]
[1722097335971,0.0015542,68939.0,68938.0,0.02909]
[1722097337260,0.0015542,68939.0,68935.0,0.02909]
[1722097337459,0.001,68941.0,68935.0,0.02909]
[1722097337659,0.001,68941.0,68934.0,0.159065]
[1722097337660,0.001,68941.0,68938.0,0.04309]
[1722097337866,0.0015542,68940.0,68938.0,0.04309]
[1722097338062,0.0015542,68942.0,68938.0,0.04309]
[1722097338262,0.001,68939.0,68938.0,0.05709]
[1722097338827,0.1466032,68942.0,68938.0,0.04309]
[1722097339224,0.1466032,68942.0,68934.0,0.02909]
[1722097339428,0.0015542,68939.0,68938.0,0.04309]
[1722097339616,0.0015542,68939.0,68938.0,0.014]
[1722097340111,0.0015542,68939.0,68938.0,0.028]
[1722097340349,0.4367202,68939.0,68938.0,0.028]
[1722097340538,0.4367202,68939.0,68938.0,0.014]
[1722097340539,0.4579338,68939.0,68938.0,0.014]
[1722097340675,0.4579338,68939.0,68938.0,0.028]
[1722097340874,0.459488,68939.0,68938.0,0.028]
[1722097341625,0.459488,68939.0,68938.0,0.014]
[1722097341857,0.169377,68939.0,68938.0,0.014]
[1722097342055,0.169377,68939.0,68938.0,0.028]
[1722097342437,0.169377,68939.0,68938.0,0.014]
[1722097342811,0.146055,68939.0,68938.0,0.028]
[1722097343691,0.436166,68939.0,68938.0,0.028]
[1722097343985,0.726277,68939.0,68938.0,0.028]
[1722097345470,1.099388,68939.0,68938.0,0.028]
[1722097345871,1.12215744,68939.0,68938.0,0.028]
[1722097346589,1.22415744,68939.0,68938.0,0.014]
[1722097346796,1.22504938,68939.0,68938.0,0.014]
[1722097347021,1.22504938,68939.0,68938.0,0.026]
[1722097347215,1.22504938,68939.0,68938.0,0.014]
[1722097347423,0.435217,68931.0,68930.0,0.4718]
[1722097348416,0.725362,68931.0,68930.0,0.4718]
[1722097348595,0.808362,68931.0,68930.0,0.4718]
[1722097348993,0.435217,68931.0,68930.0,0.4718]
[1722097349568,0.436217,68931.0,68930.0,0.4838]
[1722097349993,0.001,68931.0,68930.0,0.6245]
[1722097350736,0.001,68931.0,68930.0,0.6285]
[1722097350737,0.02377087,68931.0,68930.0,0.6285]
[1722097350939,0.001,68931.0,68930.0,0.6285]
[1722097351352,0.001,68931.0,68930.0,0.63422154]
[1722097351544,0.001,68931.0,68930.0,0.16242154]
[1722097352155,0.002,68931.0,68930.0,0.17542154]
[1722097352536,0.002,68931.0,68930.0,0.32049554]
[1722097352737,0.002,68931.0,68930.0,0.17542154]
[1722097353361,0.002,68931.0,68930.0,0.09852154]
[1722097353542,0.147072,68931.0,68930.0,0.03472154]
[1722097353737,0.16984232,68931.0,68930.0,0.03472154]
[1722097354344,0.147072,68931.0,68930.0,0.03472154]
[1722097354751,0.437217,68931.0,68930.0,0.025]
[1722097355226,0.727362,68931.0,68930.0,0.025]
[1722097357347,0.75013375,68931.0,68930.0,0.025]
[1722097358811,0.727362,68931.0,68930.0,0.025]
[1722097361026,0.437217,68931.0,68930.0,0.025]
[1722097361575,0.727362,68931.0,68930.0,0.025]
[1722097361781,0.002,68931.0,68930.0,0.025]
[1722097362011,0.002,68931.0,68930.0,0.1657]
[1722097362211,0.002,68931.0,68930.0,0.17548544]
[1722097363093,0.002,68931.0,68930.0,0.61070844]
[1722097363294,0.002,68931.0,68930.0,0.17548544]
[1722097363494,0.02477043,68931.0,68930.0,0.17548544]
[1722097363702,0.002,68931.0,68930.0,0.17548544]
[1722097363906,0.002,68931.0,68930.0,0.32055944]
[1722097364405,0.002,68931.0,68930.0,0.61070844]
[1722097364762,0.002,68931.0,68930.0,0.90085744]
[1722097365835,0.002,68931.0,68930.0,0.891072]
[1722097366071,0.002,68931.0,68930.0,1.181221]
[1722097366282,0.002,68931.0,68930.0,1.35386521]
[1722097366486,0.00084,68954.0,68948.0,0.0769]
[1722097366487,0.0086589,68950.0,68948.0,0.0769]
[1722097366689,0.00084,68954.0,68953.0,0.145026]
[1722097366811,0.00084,68954.0,68952.0,0.145028]
[1722097367014,0.00084,68954.0,68953.0,0.435078]
[1722097367236,0.00084,68954.0,68953.0,0.498878]
[1722097367435,0.02360308,68954.0,68953.0,0.498878]
[1722097367883,0.02360308,68954.0,68953.0,0.527968]
[1722097368025,0.00084,68954.0,68953.0,0.527968]
[1722097368230,0.00084,68954.0,68953.0,0.540968]
[1722097368231,0.00184,68954.0,68953.0,0.540968]
[1722097368428,0.00184,68954.0,68953.0,0.250916]
[1722097368630,0.00184,68954.0,68953.0,0.0768]
[1722097370320,0.00184,68954.0,68953.0,0.0638]
[1722097370321,0.00084,68954.0,68953.0,0.0638]
[1722097370522,0.00084,68954.0,68953.0,0.0778]
[1722097370727,0.00084,68954.0,68953.0,0.0918]
[1722097371235,0.02360345,68954.0,68953.0,0.0638]
[1722097371428,0.16862745,68954.0,68953.0,0.014]
[1722097371571,0.145864,68954.0,68953.0,0.028]
[1722097371771,0.00084,68954.0,68953.0,0.028]
[1722097371972,0.00084,68954.0,68953.0,0.014]
[1722097372224,0.00084,68954.0,68953.0,0.028]
[1722097372225,0.0023942,68954.0,68953.0,0.028]
[1722097372803,0.00084,68954.0,68953.0,0.014]
[1722097373003,0.0023942,68954.0,68953.0,0.014]
[1722097373205,0.0023942,68954.0,68953.0,0.026]
[1722097373454,0.02514766,68954.0,68953.0,0.026]
[1722097373657,0.46021966,68954.0,68953.0,0.026]
[1722097373943,0.75026766,68954.0,68953.0,0.026]
[1722097374087,0.45866546,68954.0,68953.0,0.026]
[1722097374290,0.48142956,68954.0,68953.0,0.026]
[1722097374690,0.77147756,68954.0,68953.0,0.026]
[1722097375041,0.74871346,68954.0,68953.0,0.026]
[1722097375663,0.45866546,68954.0,68953.0,0.026]
[1722097375816,0.46021966,68954.0,68953.0,0.026]
[1722097376342,0.75026766,68954.0,68953.0,0.026]
[1722097376547,0.74871346,68954.0,68953.0,0.026]
[1722097377541,0.75026766,68954.0,68953.0,0.026]
[1722097377924,0.77303259,68954.0,68953.0,0.026]
[1722097378129,0.77147839,68954.0,68953.0,0.026]
[1722097378599,1.16152639,68954.0,68953.0,0.026]
[1722097379451,1.22426146,68954.0,68953.0,0.026]
[1722097379671,1.22426146,68954.0,68953.0,0.012]
[1722097379873,0.435129,68945.0,68944.0,0.0624]
[1722097380939,0.43605299,68945.0,68944.0,0.0624]
[1722097381136,0.43605299,68945.0,68938.0,0.4718]
[1722097381137,0.0815,68943.0,68938.0,0.4718]
[1722097381345,0.0815,68943.0,68937.0,0.0624]
[1722097381346,0.435172,68938.0,68937.0,0.0624]
[1722097381941,0.43609599,68938.0,68937.0,0.0624]
[1722097382394,0.02369225,68938.0,68937.0,0.0624]
[1722097382610,0.02276826,68938.0,68937.0,0.0624]
[1722097382778,0.145057,68938.0,68937.0,0.0624]
[1722097382992,0.435172,68938.0,68937.0,0.0624]
[1722097383389,0.00092399,68940.0,68937.0,0.0624]
[1722097383587,0.00092399,68940.0,68937.0,0.0724]
[1722097383785,0.00092399,68940.0,68939.0,0.0624]
[1722097384009,0.00092399,68941.0,68939.0,0.0624]
[1722097384210,0.145047,68943.0,68939.0,0.0624]
[1722097384413,0.00092399,68942.0,68939.0,0.0624]
[1722097384634,0.1,68946.0,68939.0,0.0624]
[1722097385534,0.02276745,68945.0,68939.0,0.0624]
[1722097386376,0.02276745,68945.0,68939.0,0.0764]
[1722097386570,0.02276745,68945.0,68944.0,0.288945]
[1722097386802,0.02276745,68945.0,68944.0,0.579035]
[1722097387121,0.11518038,68959.0,68947.0,0.145038]
[1722097387364,0.16861746,68954.0,68946.0,0.0624]
[1722097387732,0.1,68953.0,68946.0,0.0624]
[1722097388221,0.245026,68953.0,68946.0,0.0624]
[1722097388464,0.1,68953.0,68946.0,0.0624]
[1722097388993,0.145027,68953.0,68946.0,0.0624]
[1722097389397,0.16861746,68954.0,68946.0,0.0624]
[1722097389649,0.16861746,68954.0,68949.0,0.145033]
[1722097389650,0.1,68953.0,68949.0,0.145033]
[1722097389799,0.03223107,68954.0,68950.0,0.0659]
[1722097390208,0.03223107,68954.0,68953.0,0.0659]
[1722097390430,0.05499574,68954.0,68953.0,0.0659]
[1722097390762,0.05499574,68954.0,68953.0,0.09499]
[1722097391130,0.05499574,68954.0,68953.0,0.240016]
[1722097392098,0.05499574,68954.0,68953.0,0.09499]
[1722097392343,0.05499574,68954.0,68953.0,0.240016]
[1722097392344,0.04635813,68954.0,68953.0,0.240016]
[1722097393147,0.04635813,68954.0,68953.0,0.254016]
[1722097393556,0.04635813,68954.0,68953.0,0.268016]
[1722097393907,0.04635813,68954.0,68953.0,0.12299]
[1722097394079,0.04635813,68954.0,68953.0,0.0939]
[1722097395757,0.02359346,68954.0,68953.0,0.0939]
[1722097397402,0.02359346,68954.0,68953.0,0.028]
[1722097397812,0.16861746,68954.0,68953.0,0.028]
[1722097398619,0.45866546,68954.0,68953.0,0.028]
[1722097400403,0.48143002,68954.0,68953.0,0.028]
[1722097401137,0.45866546,68954.0,68953.0,0.028]
[1722097401669,0.16861746,68954.0,68953.0,0.028]
[1722097402010,0.17017166,68954.0,68953.0,0.028]
[1722097402367,0.46021966,68954.0,68953.0,0.028]
[1722097403190,0.45866546,68954.0,68953.0,0.028]
[1722097403358,0.74871346,68954.0,68953.0,0.028]
[1722097403598,0.16861746,68954.0,68953.0,0.028]
[1722097404283,0.19138218,68954.0,68953.0,0.028]
[1722097404431,0.16861746,68954.0,68953.0,0.028]